Cogmind - Beta 15 @@@ ROGUE MODE // 2025.05.28 @ 09:32:33 Player: BVrutally Odd Result: Destroyed by Executioner with Helical Railgun Performance ------------- Evolutions (6) 3000 Regions Visited (18) 3600 Robots Destroyed (214) 1070 Value Destroyed (7185) 7185 Prototype IDs (45) 900 Alien Tech Used (0) 0 Bonus (6473) 6473 TOTAL SCORE: 22228 Bonus ------- High Alert Combat Kills 110 Follower Combat Kills 2087 Forged Quantum Companion 1000 Network Hubs Disabled 200 Registered with UFD 300 Met Optimus in HQ 500 Met Imprinter 300 Met Warlord at Base 500 MAIN.C Attacked Warlord 500 Warlord Defense Kills 280 Built Enhanced Grunts 300 A7 Reached Mainframe 300 Met R17 at Cetus 500 Friendly Fire -404 Cogmind --------- Core Integrity 0/1150 Matter 300/300 Energy 67/100 System Corruption 7% Temperature Hot (279) Movement Core (50) Location -4/Warlord Parts ------- > --- POWER (2) -------- (None) > --- PROPULSION (6) --- (None) > --- UTILITY (8) ------ Experimental Coolant Injector Machine Analyzer Advanced Hacking Suite > --- WEAPON (3) ------- Quantum Companion > --- INVENTORY (5) ---- Vortex Chain Reactor Vortex Cannon (26) Heavy Rocket Launcher Improved Plasma Cutter Peak State ------------ > --- POWER ------------ Neutrino Core Cooled Fission Core > --- PROPULSION ------- Medium Treads Centrium Heavy Treads Flexi-carbon Leg Myomer Leg Enhanced Biometal Leg > --- UTILITY ---------- Experimental Coolant Injector Machine Analyzer Advanced Signal Interpreter Improved Targeting Computer Experimental Targeting Computer Advanced Reaction Control System Centrium Medium Armor Plating Advanced Hacking Suite > --- WEAPON ----------- Vortex Cannon Advanced KE Penetrator Quantum Companion > --- INVENTORY -------- Vortex Chain Reactor Vortex Cannon Heavy Rocket Launcher Improved Plasma Cutter [Rating: 135] Favorites ----------- Power Improved Ion Engine Engine Improved Ion Engine Power Core Neutrino Core Reactor Quantum Reactor Propulsion Light Treads Treads Light Treads Leg Myomer Leg Wheel Wheel Utility Advanced Signal Interpreter Device Improved Sensor Array Storage Large Storage Unit Processor Advanced Signal Interpreter Hackware Advanced Hacking Suite Protection Improved Medium Armor Plating Weapon Companion Sword Energy Gun Medium Laser Energy Cannon Cooled Plasma Cannon Ballistic Gun Assault Rifle Ballistic Cannon Flak Cannon Launcher Heavy Rocket Launcher Special Weapon Multitool Slashing Weapon Companion Sword Build | -11 -10 -10 -9 -9 -6 -6 -6 -6 -5 -5 -5 -5 -5 -5 -4 -4 -4 -4 ------- Run | Yrd Mat Sub Rec Scr Fac Low Low Zio Pro Fac Ext Cet Arc Hub Fac Upp Upp War Slots Evolved 12 | . . . . . 8 . . . . 2 . . . . 2 . . . Power 1 | . . . . . 1 . . . . . . . . . . . . . Propulsion 4 | . . . . . 2 . . . . 1 . . . . 1 . . . Utility 6 | . . . . . 4 . . . . 1 . . . . 1 . . . Weapon 1 | . . . . . 1 . . . . . . . . . . . . . Parts Attached 184 | 7 11 11 3 8 33 2 7 2 . 29 16 6 9 3 16 8 3 10 Power 23 | 1 3 . . 1 2 . 1 . . 5 4 1 1 . 2 1 . 1 Engine 12 | 1 2 . . 1 1 . 1 . . 2 2 . . . 2 . . . Core 9 | . 1 . . . 1 . . . . 3 2 . . . . 1 . 1 Reactor 2 | . . . . . . . . . . . . 1 1 . . . . . Propulsion 53 | 2 2 1 2 . 11 . 2 . . 11 8 2 1 2 5 1 2 1 Treads 26 | 2 2 . 2 . 3 . 1 . . 3 6 2 1 2 1 . 1 . Leg 12 | . . . . . 4 . 1 . . 1 2 . . . 2 . 1 1 Wheel 15 | . . 1 . . 4 . . . . 7 . . . . 2 1 . . Hover . | . . . . . . . . . . . . . . . . . . . Flight . | . . . . . . . . . . . . . . . . . . . Utility 69 | 2 3 3 . 5 11 2 4 2 . 9 3 2 7 . 5 5 1 5 Device 35 | 1 2 1 . 1 3 . 2 2 . 4 . . 6 . 4 5 1 3 Storage 6 | 1 1 . . 2 1 . . . . . 1 . . . . . . . Processor 11 | . . . . 1 2 1 2 . . 3 . . . . 1 . . 1 Hackware 1 | . . . . . . . . . . 1 . . . . . . . . Protection 16 | . . 2 . 1 5 1 . . . 1 2 2 1 . . . . 1 Artifact . | . . . . . . . . . . . . . . . . . . . Weapon 39 | 2 3 7 1 2 9 . . . . 4 1 1 . 1 4 1 . 3 Energy Gun 10 | 1 2 3 . . 1 . . . . . . . . . . 1 . 2 Energy Cannon 13 | . 1 2 . 1 4 . . . . 2 1 . . . 1 . . 1 Ballistic Gun 5 | 1 . 1 . . . . . . . . . . . 1 2 . . . Ballistic Cannon 5 | . . . 1 . 2 . . . . 1 . . . . 1 . . . Launcher 3 | . . 1 . . 1 . . . . 1 . . . . . . . . Special Weapon 2 | . . . . . 1 . . . . . . 1 . . . . . . Impact Weapon . | . . . . . . . . . . . . . . . . . . . Slashing Weapon 1 | . . . . 1 . . . . . . . . . . . . . . Piercing Weapon . | . . . . . . . . . . . . . . . . . . . Special Melee Weapon . | . . . . . . . . . . . . . . . . . . . Unidentified Prototypes 20 | . . . . 1 2 1 1 1 . 2 . 2 . 1 1 . . 8 Corrupted Parts 5 | . . . . . . . . . . . . 2 . 3 . . . . System Corruption 33 | . . . . . . . . . . . . 18 . 15 . . . . Parts Lost 98 | . 4 3 1 . 18 . 2 . 1 21 10 5 . 1 14 3 2 13 Power 17 | . . 1 . . 2 . . . . 5 2 2 . . 2 1 . 2 Propulsion 41 | . . 1 1 . 9 . 2 . . 8 5 2 . . 6 1 1 5 Utility 25 | . 1 . . . 4 . . . 1 5 2 1 . 1 4 1 1 4 Weapon 15 | . 3 1 . . 3 . . . . 3 1 . . . 2 . . 2 Highest Loss Streak 18 | . 2 1 1 . 18 . 2 . 1 7 5 4 . 1 7 3 2 13 To Critical Strikes 5 | . . . 1 . . . . . . . . . . . 3 . . 1 Average Backups 9 | 2 8 5 5 10 12 14 14 14 14 10 8 7 8 7 5 4 4 4 Power . | . . . . . . . . . . . . . . . . . . . Propulsion 1 | 1 3 1 . 2 1 2 1 1 1 . 3 2 2 2 1 . . . Utility 2 | . 2 . . 1 2 4 4 6 6 4 1 1 2 2 1 1 1 . Weapon 3 | . 2 2 3 3 4 5 5 4 4 3 1 2 2 2 2 2 2 2 Tool/Special . | . . . . . . . . . . . . . . . . . . . Unused Backups 18 | . . 2 . 2 . . 1 1 . 6 2 2 . . . . . 2 Power 1 | . . . . . . . . . . . . . . . . . . 1 Propulsion 6 | . . 1 . . . . . 1 . . 2 2 . . . . . . Utility 4 | . . 1 . 1 . . . . . 2 . . . . . . . . Weapon 6 | . . . . 1 . . 1 . . 3 . . . . . . . 1 Tool/Special 1 | . . . . . . . . . . 1 . . . . . . . . Average Slot Usage (%) 87 | . 98 87 70 87 82 86 86 98 99 88 95 78 75 82 61 80 91 93 Engine 7 | . 9 13 . 11 5 6 6 13 13 5 4 . . . 2 8 5 4 Core 1 | . 4 . . . 3 . . . . 3 5 1 . . . 1 5 5 Treads 17 | . 27 21 23 28 20 . 5 6 6 8 24 21 17 17 10 5 9 9 Leg 2 | . . . . . . . 2 6 6 2 1 . . . 2 8 9 12 Wheel 4 | . . 7 3 . 3 26 13 13 13 13 . . . . 2 8 5 2 Device 8 | . 13 1 . 6 8 13 15 13 12 11 5 . 4 . 2 10 19 17 Storage 5 | . 14 2 . 11 6 6 6 6 6 3 3 5 5 5 2 . . . Processor 10 | . . . . 2 5 6 10 20 20 19 17 17 17 17 12 15 15 18 Hackware 1 | . . . . . . . . . . . 5 5 5 5 5 5 5 5 Protection 4 | . . 12 14 4 13 5 2 . . 1 6 10 3 5 4 . . . Energy Gun 1 | . 19 2 2 . . . . . . . . . . . . . 5 1 Energy Cannon 5 | . 2 15 14 7 5 2 3 . . 5 8 2 . 4 2 5 5 5 Ballistic Gun 1 | . 5 10 . . . . . . . . . . . . 1 4 . 3 Ballistic Cannon 3 | . . . 11 7 . 10 8 12 13 3 . . . . . . . . Slashing Weapon 4 | . . . . 6 5 6 6 6 6 5 5 5 5 5 5 5 5 5 Peak Build Rating 135 | 7 13 14 13 26 58 48 58 57 47 70 76 105 110 123 125 101 107 135 Average Rating 50 | 6 10 12 12 17 40 44 44 46 46 59 66 77 101 110 89 89 105 117 On Entrance 54 | . 7 10 13 12 19 34 48 46 47 47 60 69 105 110 123 84 101 107 Naked Turns . | . . . . . . . . . . . . . . . . . . . Heaviest Build 75 | 15 31 39 30 42 72 59 59 48 48 63 57 54 75 75 75 48 48 60 Greatest Support 188 | 40 40 40 40 40 85 46 46 26 26 42 122 183 188 188 188 50 26 108 Greatest Overweight (x) 9 | . 9 1 1 7 7 1 2 1 1 9 2 . . . 2 1 2 3 Average Overweight (x) . | . . . . . . . 1 1 1 1 . . . . . . 1 1 Largest Inventory Capacity 15 | 8 15 15 5 15 15 15 15 15 15 15 10 10 10 10 10 5 5 5 Average Capacity 10 | 7 12 6 5 12 15 15 15 15 15 11 8 10 10 10 7 5 5 5 Most Carried 15 | 4 11 10 5 15 15 15 15 15 15 15 10 10 10 10 8 5 4 5 Average Carried 9 | 2 8 5 5 11 12 14 14 14 14 9 8 9 9 9 6 4 4 4 Final Capacity 15 | 8 15 5 5 15 15 15 15 15 15 5 10 10 10 10 5 5 5 5 Final Carried 15 | 4 10 5 5 12 14 15 15 15 15 5 8 10 10 8 5 4 4 5 Class Distribution -------------------- 35% | Mutant 31% | Scavenger-Assassin 27% | Scavenger-Mutant 4% | Subdweller-Mutant Dominant Class ---------------- Mutant | -10/Materials Subdweller-Mutant | -10/Subcaves Mutant | -9/Recycling Mutant | -9/Scraptown Mutant | -6/Factory Scavenger-Assassin | -6/Lower Caves Scavenger-Assassin | -6/Lower Caves Scavenger-Assassin | -6/Zion Scavenger-Assassin | -5/Proximity Caves Scavenger-Assassin | -5/Factory Scavenger-Assassin | -5/Extension Scavenger-Mutant | -5/Cetus Scavenger-Mutant | -5/Archives Scavenger-Mutant | -5/Hub_04(d) Scavenger-Mutant | -4/Factory Scavenger-Mutant | -4/Upper Caves Scavenger-Mutant | -4/Upper Caves Scavenger-Mutant | -4/Warlord Resources | -11 -10 -10 -9 -9 -6 -6 -6 -6 -5 -5 -5 -5 -5 -5 -4 -4 -4 -4 ----------- Run | Yrd Mat Sub Rec Scr Fac Low Low Zio Pro Fac Ext Cet Arc Hub Fac Upp Upp War Matter Collected 4339 | 281 342 276 235 95 621 77 300 34 183 545 305 95 404 40 223 75 78 130 Remotely 175 | . . . . . . . . . . . . . . . 90 75 10 . Salvage Created 11096 | 192 763 690 913 . 1552 65 310 . 132 1847 1419 254 354 655 1195 235 365 155 Parts 471 | 20 35 43 32 . 65 3 13 . 12 91 42 11 39 18 32 2 8 5 Haulers Intercepted 8 | . 2 . . . 2 . . . . 1 . . . 2 1 . . . Recyclers Shooed 11 | . 1 . 5 . 2 . . . . 1 1 . . . 1 . . . Parts Field Recycled . | . . . . . . . . . . . . . . . . . . . Retrieved Matter . | . . . . . . . . . . . . . . . . . . . Parts Self-Destructed 52 | . . 23 . . . 3 9 . 11 . . . . . . 1 5 . Prevented 6 | . . . . . . 3 . . 3 . . . . . . . . . Kills | -11 -10 -10 -9 -9 -6 -6 -6 -6 -5 -5 -5 -5 -5 -5 -4 -4 -4 -4 ------- Run | Yrd Mat Sub Rec Scr Fac Low Low Zio Pro Fac Ext Cet Arc Hub Fac Upp Upp War Combat Hostiles Destroyed 122 | . 14 17 3 . 19 . 6 . 5 19 16 3 . 4 9 1 4 2 Melee 47 | . . . . . 13 . 1 . . 14 8 . . 3 6 1 . 1 Guns 15 | . 13 2 . . . . . . . . . . . . . . . . Cannons 36 | . 1 9 3 . 1 . 5 . 5 2 6 . . 1 2 . . 1 AOE 20 | . . 6 . . 5 . . . . 3 1 . . . 1 . 4 . Classes Destroyed 23 | 3 3 6 1 . 4 . . . 1 1 1 . 1 1 . . 1 . Worker 18 | 2 1 . . . 5 . . . . 8 . . . 2 . . . . Builder 13 | . . . . . 3 . . . . 4 3 . . 3 . . . . Tunneler 5 | 5 . . . . . . . . . . . . . . . . . . Hauler 8 | . 2 . . . 2 . . . . 1 . . . 2 1 . . . Recycler 29 | 1 2 . 11 . 2 . . . . 3 3 . . 1 6 . . . Mechanic 2 | . . . . . . . . . . 2 . . . . . . . . Operator 9 | . . . . . . . . . . . . . 9 . . . . . Turret 2 | . . 2 . . . . . . . . . . . . . . . . Watcher 6 | . . . . . 1 . . . . 3 1 1 . . . . . . Swarmer 27 | . 3 2 . . 3 . 4 . 4 4 . . . . 7 . . . Grunt 38 | . 11 2 . . 4 . 1 . . 5 9 . . 1 . . 3 2 Brawler 1 | . . . . . . . . . . . . . . . . . 1 . Duelist 1 | . . . . . . . . . . . . . . 1 . . . . Protector 2 | . . . . . 2 . . . . . . . . . . . . . Sentry 14 | . . . 3 . . . 1 . . 5 3 . . 1 . 1 . . Specialist 7 | . . . . . 5 . . . . 2 . . . . . . . . Hunter 8 | . . 2 . . 1 . . . . 2 1 . . . 2 . . . Programmer 10 | . . 1 . . 4 . . . 1 1 2 . . 1 . . . . Behemoth 1 | . . . . . . . . . . . 1 . . . . . . . Cetus Guard 3 | . . . . . . . . . . . . 3 . . . . . . Artisan 1 | . . 1 . . . . . . . . . . . . . . . . Subdweller 10 | . . 10 . . . . . . . . . . . . . . . . Scientist 1 | . . 1 . . . . . . . . . . . . . . . . Decomposer 9 | . . . . . . 3 2 . . . . . . . . 1 3 . Packrat 2 | . . . . . . . . . . . . . . . . 2 . . Samaritan 3 | . . . . . . . . . 1 . . . . . . . 2 . Best Kill Streak 9 | 4 3 4 6 . 9 . 4 . 4 7 5 2 2 6 6 1 4 2 Combat Bots Only 9 | . 3 3 1 . 9 . 4 . 4 5 3 2 . 2 3 1 4 2 Max Kills in Single Turn 3 | 1 1 3 1 . 3 1 1 . 2 2 2 1 1 1 2 1 3 1 Gunslinging . | . . . . . . . . . . . . . . . . . . . Exploded 3 | . . 3 . . 3 . . . . 1 1 . . . 1 . 3 . Melee 1 | . . . . . 1 . 1 . . 1 1 . . 1 1 1 . 1 Uniques/NPCs Destroyed . | . . . . . . . . . . . . . . . . . . . Combat | -11 -10 -10 -9 -9 -6 -6 -6 -6 -5 -5 -5 -5 -5 -5 -4 -4 -4 -4 -------- Run | Yrd Mat Sub Rec Scr Fac Low Low Zio Pro Fac Ext Cet Arc Hub Fac Upp Upp War Hostile Shots Fired 1483 | . 85 80 12 . 240 . 100 . 18 226 102 43 6 44 323 20 13 171 Missed 420 | . 24 25 4 . 55 . 31 . 5 52 21 19 1 15 92 7 6 63 Deflected 16 | . . . . . . . . . . . 3 . . 2 7 . . 4 Hits 1063 | . 61 55 8 . 185 . 69 . 13 174 81 24 5 29 231 13 7 108 Melee 18 | . . . . . . . . . . . . . . 6 . . . 12 Projectile 1045 | . 61 55 8 . 185 . 69 . 13 174 81 24 5 23 231 13 7 96 AOE 4 | . . . . . . . . . . . . . . 1 2 . . 1 Critical Strikes 43 | . 2 1 1 . 5 . 1 . . 8 1 2 . . 9 1 1 11 Part Disruptions 9 | . . . . . 9 . . . . . . . . . . . . . Damage Taken 19598 | . 709 908 125 . 3105 . 896 . 205 3369 1493 578 145 739 4348 312 158 2508 Core 2987 | . 111 125 . . 554 . 109 . 14 601 192 36 8 80 474 60 . 623 Absorbed by Shields 850 | . . . . . . . . . . . 362 105 . . . . . 383 Regen/Repaired (Parts) 1042 | . . . . . . . . 562 . . . . . . . . . 480 Core Remaining (%) 33 | 100 . . . 5 . . . . 20 . . . . 8 . . . . Volleys Fired 330 | 16 64 45 32 . 26 15 17 . 9 20 35 18 25 . 6 . 2 . Largest 2 | 2 2 2 2 . 2 1 2 . 2 2 2 1 1 . 1 . 1 . Hottest 210 | 70 115 160 140 . 138 90 90 . 74 210 210 75 30 . 75 . 39 . Shots Fired 528 | 32 127 66 51 . 36 15 32 . 18 35 66 17 25 . 6 . 2 . Gun 182 | 32 117 26 5 . 2 . . . . . . . . . . . . . Cannon 299 | . 10 33 46 . 28 15 32 . 18 32 64 17 . . 4 . . . Launcher 22 | . . 7 . . 6 . . . . 3 2 . . . 2 . 2 . Special 25 | . . . . . . . . . . . . . 25 . . . . . Kinetic 152 | 16 32 26 27 . 6 . 27 . 18 . . . . . . . . . Thermal 324 | 16 95 40 24 . 8 15 5 . . 32 64 . 25 . . . . . Explosive 9 | . . . . . . . . . . 3 2 . . . 2 . 2 . Electromagnetic 43 | . . . . . 22 . . . . . . 17 . . 4 . . . Robot Hit Streak 22 | 7 16 12 9 . 10 . 5 . 5 13 22 17 4 . 5 . . . Robot Miss Streak 10 | 1 5 2 5 . 2 . 8 . 10 3 5 1 3 . 1 . . . Penetration Max . | . . . . . . . . . . . . . . . . . . . Secondary Targets . | . . . . . . . . . . . . . . . . . . . Autonomous 19 | . . . . . . . . . . . 1 . . 5 5 . 2 6 Shots Hit Robots 609 | 21 87 47 33 . 77 3 30 . 17 96 80 16 23 18 39 11 5 6 Core Hits 321 | 9 32 27 15 . 44 2 22 . 22 46 38 6 16 9 15 3 13 2 Critical Kills . | . . . . . . . . . . . . . . . . . . . Critical Parts Destroyed . | . . . . . . . . . . . . . . . . . . . Critical Strikes 10 | 1 2 . 2 . 1 . . . . 2 . . . . 2 . . . Burn 3 | 1 2 . . . . . . . . . . . . . . . . . Blast 2 | . . . 2 . . . . . . . . . . . . . . . Corrupt 1 | . . . . . 1 . . . . . . . . . . . . . Melee Attacks 370 | . . . . . 81 5 15 . 4 103 47 1 10 26 49 14 9 6 Impact . | . . . . . . . . . . . . . . . . . . . Slashing 370 | . . . . . 81 5 15 . 4 103 47 1 10 26 49 14 9 6 Piercing . | . . . . . . . . . . . . . . . . . . . Sneak Attacks 84 | . . . . . 17 3 2 . 2 23 6 . 9 8 6 3 5 . Combat Hostiles 2 | . . . . . 2 . . . . . . . . . . . . . Follow-up Attacks 4 | . . . . . 1 . . . . 1 . . . . 1 . . 1 Damage Inflicted 29735 | 271 1178 1593 801 . 4879 246 767 . 424 5335 3911 919 1595 1878 3269 722 1171 776 Guns 1646 | 271 1004 258 79 . 34 . . . . . . . . . . . . . Cannons 6966 | . 174 572 714 . 405 . 288 . 236 606 1969 407 . 399 542 . 175 479 Explosions 3984 | . . 763 . . 1479 . . . . 515 232 448 . . 228 . 319 . Melee 17014 | . . . . . 2961 246 479 . 188 4214 1703 64 1485 1479 2499 722 677 297 Ramming 15 | . . . 8 . . . . . . . 7 . . . . . . . Kinetic 3649 | 96 278 916 356 . 1479 . 288 . 236 . . . . . . . . . Thermal 5246 | 175 900 677 437 . . . . . . 606 1893 448 110 . . . . . Explosive 1294 | . . . . . . . . . . 515 232 . . . 228 . 319 . Electromagnetic 953 | . . . . . 439 . . . . . . 407 . . 107 . . . Impact . | . . . . . . . . . . . . . . . . . . . Slashing 17014 | . . . . . 2961 246 479 . 188 4214 1703 64 1485 1479 2499 722 677 297 Piercing . | . . . . . . . . . . . . . . . . . . . Phasic 1564 | . . . . . . . . . . . 76 . . 399 435 . 175 479 Highest Corruption 29 | . . . . . 12 12 12 12 . 7 11 29 29 18 . . . 7 Average Corruption 10 | . . . . . 5 12 12 12 . 5 10 17 19 2 . . . 3 Corruption Purged 29 | . . . . . . . . . . . . . 29 . . . . . Corruption Blocked . | . . . . . . . . . . . . . . . . . . . Effects 199 | . . . . . 10 15 34 3 . 22 69 18 27 . . . . 1 Message Errors 44 | . . . . . 3 4 6 2 . 3 17 5 4 . . . . . Matter Fused 50 | . . . . . 3 5 6 . . 6 21 3 6 . . . . . Heat Flow Errors 21 | . . . . . 1 1 3 1 . 3 6 1 4 . . . . 1 Energy Discharges 30 | . . . . . . 2 4 . . 5 10 3 6 . . . . . Parts Fused 5 | . . . . . . . 2 . . . 2 . 1 . . . . . Data Loss (minor) 21 | . . . . . 1 1 6 . . 2 6 2 3 . . . . . Data Loss (major) 8 | . . . . . . . 3 . . 1 1 1 2 . . . . . Misfires 8 | . . . . . 1 . 2 . . . 4 1 . . . . . . Alerts 5 | . . . . . . 2 . . . . 2 . 1 . . . . . Misdirections 2 | . . . . . 1 . 1 . . . . . . . . . . . Weapon Failures 5 | . . . . . . . 1 . . 2 . 2 . . . . . . Overload Shots 10 | . . . . . . . . . . 2 8 . . . . . . . Overflow Damage 2789 | . . . 31 . 596 60 170 . 16 547 180 . 199 317 382 189 102 . Projectiles 345 | . . . 31 . . . . . . . 47 . . 148 100 . 19 . Explosions 104 | . . . . . 57 . . . . 7 . . . . 40 . . . Melee 2340 | . . . . . 539 60 170 . 16 540 133 . 199 169 242 189 83 . Knockbacks 18 | . . . 3 . . . 10 . 5 . . . . . . . . . Impact . | . . . . . . . . . . . . . . . . . . . Kinetic 17 | . . . 3 . . . 9 . 5 . . . . . . . . . Secondary 1 | . . . . . . . 1 . . . . . . . . . . . Self-Inflicted Damage 310 | . . 52 . . 207 . . . . . 40 . . . . . 11 . Shots 9 | . . 2 . . 5 . . . . . 1 . . . . . 1 . Rammed 3 | . 1 . 1 . . . . . . . 1 . . . . . . . Targets Rammed 3 | . 1 . 1 . . . . . . . 1 . . . . . . . Kicked . | . . . . . . . . . . . . . . . . . . . Crushed . | . . . . . . . . . . . . . . . . . . . Highest Temperature 345 | 36 181 129 200 . 288 345 304 216 22 184 339 185 219 3 341 . . 11 Average Temperature 83 | 12 49 41 75 . 107 156 96 112 20 92 108 84 91 3 113 . . 11 Received Heat Transfer 2680 | . 342 123 36 . 288 . 249 . . 405 278 80 18 57 511 45 45 203 Effects 4 | . . . . . . . 3 . . . 1 . . . . . . . Shutdowns 1 | . . . . . . . . . . . 1 . . . . . . . Interference 3 | . . . . . . . 3 . . . . . . . . . . . Siege Activations . | . . . . . . . . . . . . . . . . . . . Martial Activations . | . . . . . . . . . . . . . . . . . . . Shielding Activations . | . . . . . . . . . . . . . . . . . . . Robots Disrupted 1 | . . . . . 1 . . . . . . . . . . . . . Combat Hostiles 1 | . . . . . 1 . . . . . . . . . . . . . Robots Corrupted 6 | . . . . . 2 . . . . . . 3 . . 1 . . . Combat Hostiles 3 | . . . . . . . . . . . . 3 . . . . . . Parts Fried 7 | . . . . . 3 . . . . . . 2 . . 2 . . . Impact Corruptions . | . . . . . . . . . . . . . . . . . . . Robots Melted 1 | . . . . . . . . . . . 1 . . . . . . . Combat Hostiles 1 | . . . . . . . . . . . 1 . . . . . . . Parts Melted 20 | . 7 1 . . . . . . . 5 7 . . . . . . . Heat Transferred 8830 | 592 2442 1075 581 . . . . . . 930 2610 200 400 . . . . . Parts Sabotaged . | . . . . . . . . . . . . . . . . . . . Parts Stolen . | . . . . . . . . . . . . . . . . . . . Parts Stripped . | . . . . . . . . . . . . . . . . . . . Power Chain Reactions 1 | . . . . . . . . . . . . 1 . . . . . . Alert | -11 -10 -10 -9 -9 -6 -6 -6 -6 -5 -5 -5 -5 -5 -5 -4 -4 -4 -4 ------- Run | Yrd Mat Sub Rec Scr Fac Low Low Zio Pro Fac Ext Cet Arc Hub Fac Upp Upp War Maximum Alert Level 3 | . . . . . . . . . . 1 1 1 1 3 2 . . . Low Security (%) 86 | 100 100 . 100 . 100 . . . . 85 76 72 92 16 86 . . . Level 1 10 | . . . . . . . . . . 14 23 27 7 18 6 . . . Level 2 2 | . . . . . . . . . . . . . . 60 6 . . . Level 3 . | . . . . . . . . . . . . . . 5 . . . . Level 4 . | . . . . . . . . . . . . . . . . . . . Level 5 . | . . . . . . . . . . . . . . . . . . . High Security . | . . . . . . . . . . . . . . . . . . . Max Security . | . . . . . . . . . . . . . . . . . . . Peak Influence 730 | 10 55 . 116 . 175 . . . . 244 288 262 230 730 419 . . . Initial 357 | . . . 45 . . . . . . 9 104 159 88 . 357 . . . Average 95 | 1 13 . 46 . 67 . . . . 91 128 185 74 471 93 . . . Influence Increases 5892 | 40 369 220 258 . 620 . 130 . 120 821 1228 313 252 996 291 20 120 94 Destroy 0b10 Robot/C 3140 | . 280 180 60 . 340 . 120 . 100 380 720 160 80 360 180 20 80 80 Destroy 0b10 Robot/NC 490 | 40 25 . 55 . 85 . . . . 105 50 10 45 40 35 . . . Destroy Leader 468 | . 64 10 . . 66 . 10 . 20 98 76 . . 82 32 . 10 . Allied During Kill 830 | . . . . . . . . . . . 219 106 125 366 . . . 14 Successful Hack 41 | . . . . . 20 . . . . . 15 . . 6 . . . . Select Force Hacks 170 | . . . 120 . . . . . . . . . . 50 . . . . Disable Machine 180 | . . . 15 . 30 . . . . 60 60 15 . . . . . . Destroy Structure 348 | . . . 8 . 64 . . . . 88 58 22 2 62 44 . . . Lose Combat Pursuer 225 | . . 30 . . 15 . . . . 90 30 . . 30 . . 30 . Influence Decreases 5892 | 40 343 152 352 . 480 140 90 40 104 623 1157 376 474 266 999 42 98 116 Entered New Map 936 | . . 14 49 . . 52 . 40 . 7 110 126 134 . 373 9 . 22 Time Decay 3369 | 40 303 118 303 . 300 88 80 . 94 406 607 160 340 176 201 33 98 22 Lost Part 795 | . 40 20 . . 180 . 10 . 10 210 100 50 . 10 125 . . 40 Lost Ally 492 | . . . . . . . . . . . 340 40 . 80 . . . 32 Purge Threat 300 | . . . . . . . . . . . . . . . 300 . . . Squads Dispatched 24 | . 1 . . . 5 . . . . 4 4 . . 9 1 . . . Investigation 5 | . 1 . . . . . . . . . 2 . . 2 . . . . Extermination 7 | . . . . . 3 . . . . 2 . . . 1 1 . . . Reinforcement 7 | . . . . . 2 . . . . 2 2 . . 1 . . . . Assault 3 | . . . . . . . . . . . . . . 3 . . . . Garrison 2 | . . . . . . . . . . . . . . 2 . . . . Intercept . | . . . . . . . . . . . . . . . . . . . Searches Triggered . | . . . . . . . . . . . . . . . . . . . Construction Impeded 2 | . . . . . 1 . . . . . 1 . . . . . . . Haulers Reinforced 2 | . . . . . 1 . . . . 1 . . . . . . . . Active Scanning Responses . | . . . . . . . . . . . . . . . . . . . Cargo Convoy Interrupts 1 | . . . . . 1 . . . . . . . . . . . . . Stealth | -11 -10 -10 -9 -9 -6 -6 -6 -6 -5 -5 -5 -5 -5 -5 -4 -4 -4 -4 --------- Run | Yrd Mat Sub Rec Scr Fac Low Low Zio Pro Fac Ext Cet Arc Hub Fac Upp Upp War Distress Signals 12 | . 2 . . . . . . . . 1 3 2 . 2 1 . . 1 Communications Jammed . | . . . . . . . . . . . . . . . . . . . Distress Signals . | . . . . . . . . . . . . . . . . . . . Times Spotted 290 | . 24 21 3 . 25 . 7 . 5 37 39 9 34 20 17 1 6 42 Peak Tracking Total 18 | . 3 6 1 . 12 . 4 . 4 9 7 5 2 10 8 1 4 18 Tactical Retreats 10 | . . 1 . . 1 . . . . 3 2 . . 2 . . 1 . Traps | -11 -10 -10 -9 -9 -6 -6 -6 -6 -5 -5 -5 -5 -5 -5 -4 -4 -4 -4 ------- Run | Yrd Mat Sub Rec Scr Fac Low Low Zio Pro Fac Ext Cet Arc Hub Fac Upp Upp War Traps Triggered 12 | . 6 . . . . . . . . 4 1 . . . 1 . . . Indirectly . | . . . . . . . . . . . . . . . . . . . Trap Hack Attempts . | . . . . . . . . . . . . . . . . . . . Triggered . | . . . . . . . . . . . . . . . . . . . Disarmed . | . . . . . . . . . . . . . . . . . . . Reprogrammed . | . . . . . . . . . . . . . . . . . . . Reused . | . . . . . . . . . . . . . . . . . . . Traps Extracted . | . . . . . . . . . . . . . . . . . . . Installed 1 | . . . . . . . . . . . . . . . . . 1 . Triggered . | . . . . . . . . . . . . . . . . . . . Machines | -11 -10 -10 -9 -9 -6 -6 -6 -6 -5 -5 -5 -5 -5 -5 -4 -4 -4 -4 ---------- Run | Yrd Mat Sub Rec Scr Fac Low Low Zio Pro Fac Ext Cet Arc Hub Fac Upp Upp War Machines Disabled 18 | . . 4 1 . 2 . . . . 4 5 1 . . . . . 1 Max in Single Turn 3 | . . 3 1 . 1 . . . . 2 1 1 . . . . . 1 Network Hub 1 | . . . . . . . . . . . . . . 1 . . . . Machines Repaired . | . . . . . . . . . . . . . . . . . . . Machines Dismantled 2 | . . . . . . . . . . . . 1 . . . . . 1 Machines Sabotaged 1 | . . . . . . . . . . . . . . 1 . . . . Overloaded Fab Kills . | . . . . . . . . . . . . . . . . . . . Hacking | -11 -10 -10 -9 -9 -6 -6 -6 -6 -5 -5 -5 -5 -5 -5 -4 -4 -4 -4 --------- Run | Yrd Mat Sub Rec Scr Fac Low Low Zio Pro Fac Ext Cet Arc Hub Fac Upp Upp War Machines Accessed 38 | . . . 5 6 3 . 2 . . 2 7 1 . 3 2 1 . 6 Terminals 18 | . . . 1 . 2 . . . . 2 7 1 . 3 2 . . . Fabricators . | . . . . . . . . . . . . . . . . . . . Repair Stations . | . . . . . . . . . . . . . . . . . . . Recycling Units 5 | . . . 4 . 1 . . . . . . . . . . . . . Scanalyzers . | . . . . . . . . . . . . . . . . . . . Garrison Access . | . . . . . . . . . . . . . . . . . . . Total Hacks 111 | . . . 11 47 5 . 2 . . 2 15 1 . 3 6 1 . 18 Successful 87 | . . . 4 47 2 . 2 . . 1 6 . . 3 3 1 . 18 Failed 24 | . . . 7 . 3 . . . . 1 9 1 . . 3 . . . Catastrophic 5 | . . . 1 . . . . . . . 3 . . . 1 . . . Database Lockouts . | . . . . . . . . . . . . . . . . . . . Manual 14 | . . . 8 . . . . . . 1 1 1 . 3 . . . . Terminals 33 | . . . 3 . 3 . . . . 2 15 1 . 3 6 . . . Fabricators . | . . . . . . . . . . . . . . . . . . . Repair Stations . | . . . . . . . . . . . . . . . . . . . Recycling Units 10 | . . . 8 . 2 . . . . . . . . . . . . . Scanalyzers . | . . . . . . . . . . . . . . . . . . . Garrison Access . | . . . . . . . . . . . . . . . . . . . Terminal Hacks 80 | . . . . 47 2 . 2 . . 1 5 . . 1 3 1 . 18 Record 53 | . . . . 46 . . . . . . . . . . . . . 7 Prototype ID Bank 10 | . . . . . . . . . . . . . . . . . . 10 Open Door 10 | . . . . 1 . . 2 . . . 5 . . . . 1 . 1 Level Access Points 1 | . . . . . . . . . . . . . . 1 . . . . Branch Access Points 1 | . . . . . 1 . . . . . . . . . . . . . Alert Level 2 | . . . . . . . . . . 1 . . . . 1 . . . Unreport Threat 2 | . . . . . . . . . . . . . . . 2 . . . Locate Traps 1 | . . . . . 1 . . . . . . . . . . . . . Fabricator Hacks . | . . . . . . . . . . . . . . . . . . . Repair Station Hacks . | . . . . . . . . . . . . . . . . . . . Recycling Unit Hacks . | . . . . . . . . . . . . . . . . . . . Scanalyzer . | . . . . . . . . . . . . . . . . . . . Garrison Access Hacks . | . . . . . . . . . . . . . . . . . . . Unauthorized Hacks 7 | . . . 4 . . . . . . . 1 . . 2 . . . . Terminals 3 | . . . . . . . . . . . 1 . . 2 . . . . Botnet 1 | . . . . . . . . . . . 1 . . . . . . . Sabotage 2 | . . . . . . . . . . . . . . 2 . . . . Fabricators . | . . . . . . . . . . . . . . . . . . . Repair Stations . | . . . . . . . . . . . . . . . . . . . Recycling Units 4 | . . . 4 . . . . . . . . . . . . . . . Tunnel 4 | . . . 4 . . . . . . . . . . . . . . . Scanalyzers . | . . . . . . . . . . . . . . . . . . . Garrison Access . | . . . . . . . . . . . . . . . . . . . Data Cores Recovered . | . . . . . . . . . . . . . . . . . . . Used . | . . . . . . . . . . . . . . . . . . . Hacking Detections 15 | . . . 4 . 1 . . . . 1 6 1 . . 2 . . . Full Trace Events 2 | . . . . . . . . . . . 2 . . . . . . . Feedback Events . | . . . . . . . . . . . . . . . . . . . Feedback Blocked . | . . . . . . . . . . . . . . . . . . . Robot Schematics Acquired . | . . . . . . . . . . . . . . . . . . . Robots Built . | . . . . . . . . . . . . . . . . . . . Authchips . | . . . . . . . . . . . . . . . . . . . Time . | . . . . . . . . . . . . . . . . . . . Total Robot Build Rating . | . . . . . . . . . . . . . . . . . . . Part Schematics Acquired . | . . . . . . . . . . . . . . . . . . . Parts Built . | . . . . . . . . . . . . . . . . . . . Authchips . | . . . . . . . . . . . . . . . . . . . Time . | . . . . . . . . . . . . . . . . . . . Total Part Build Rating . | . . . . . . . . . . . . . . . . . . . Parts Repaired . | . . . . . . . . . . . . . . . . . . . Time . | . . . . . . . . . . . . . . . . . . . Parts Recycled . | . . . . . . . . . . . . . . . . . . . Recycled Matter . | . . . . . . . . . . . . . . . . . . . Retrieved Matter . | . . . . . . . . . . . . . . . . . . . Retrieved Components . | . . . . . . . . . . . . . . . . . . . Parts Scanalyzed . | . . . . . . . . . . . . . . . . . . . Part Schematics Acquired . | . . . . . . . . . . . . . . . . . . . Parts Damaged . | . . . . . . . . . . . . . . . . . . . Bothacking | -11 -10 -10 -9 -9 -6 -6 -6 -6 -5 -5 -5 -5 -5 -5 -4 -4 -4 -4 ------------ Run | Yrd Mat Sub Rec Scr Fac Low Low Zio Pro Fac Ext Cet Arc Hub Fac Upp Upp War Used RIF Installer . | . . . . . . . . . . . . . . . . . . . Robots Hacked . | . . . . . . . . . . . . . . . . . . . Non-combat . | . . . . . . . . . . . . . . . . . . . Combat . | . . . . . . . . . . . . . . . . . . . Robot Hacks Applied . | . . . . . . . . . . . . . . . . . . . Relay Couplers Released . | . . . . . . . . . . . . . . . . . . . Fabnet Peak Effective % . | . . . . . . . . . . . . . . . . . . . Robots Rewired 21 | . . . . . . . . . . . 16 . . . . . . 5 Allies Hacked 1 | . . . . . . . . . . . . . . . . . . 1 Hacks Repelled . | . . . . . . . . . . . . . . . . . . . Allies | -11 -10 -10 -9 -9 -6 -6 -6 -6 -5 -5 -5 -5 -5 -5 -4 -4 -4 -4 -------- Run | Yrd Mat Sub Rec Scr Fac Low Low Zio Pro Fac Ext Cet Arc Hub Fac Upp Upp War Total Allies 33 | . . . . . . . . . . . 23 5 . . . . . 5 Largest Group 7 | . . . . . . . . . . . 7 7 6 5 . . . 5 Highest-Rated Group 639 | . . . . . . . . . . . 274 639 639 480 . . . 298 Highest-Rated Ally 159 | . . . . . . . . . . . 159 159 159 96 . . . 64 Total Orders 1 | . . . . . . . . . . . 1 . . . . . . . FOLLOW 1 | . . . . . . . . . . . 1 . . . . . . . Ally Attacks 310 | . . . . . . . . . . . 167 29 29 67 . . . 18 Total Damage 8835 | . . . . . . . . . . . 3339 1064 1059 2801 . . . 572 Kills 52 | . . . . . . . . . . . 26 6 4 14 . . . 2 Allies Corrupted 1 | . . . . . . . . . . . . . . . . . . 1 Allies Melted 1 | . . . . . . . . . . . 1 . . . . . . . Intel | -11 -10 -10 -9 -9 -6 -6 -6 -6 -5 -5 -5 -5 -5 -5 -4 -4 -4 -4 ------- Run | Yrd Mat Sub Rec Scr Fac Low Low Zio Pro Fac Ext Cet Arc Hub Fac Upp Upp War Active Infowar (turns) 13411 | 166 59 56 . 1523 1054 373 851 1061 768 1180 1971 323 1036 391 476 631 419 1073 Optics 101 | . . . . . . . . . . 101 . . . . . . . . Sensors 6478 | . . . . . 797 373 745 1059 768 898 1838 . . . . . . . Structural 6021 | . . . . 1523 651 373 844 1060 759 689 122 . . . . . . . Seismic 464 | 166 59 56 . . . . . . . . . . . . 62 121 . . Decoding 334 | . . . . . . . . . . 334 . . . . . . . . T.N.C. 94 | . . . . . 94 . . . . . . . . . . . . . Machine Analysis 7151 | . . . . . . . . . . 831 1971 323 1036 391 476 631 419 1073 Jamming 126 | . . . . . . . . . . 126 . . . . . . . . Robot Analysis Total . | . . . . . . . . . . . . . . . . . . . Derelict Logs Recovered 10 | . . . . 3 . 2 1 1 2 . . . . . . . 1 . Drone Launches . | . . . . . . . . . . . . . . . . . . . Drone Recoveries . | . . . . . . . . . . . . . . . . . . . Decoded 0b10 Intel 17 | . . . . . . . . . . 17 . . . . . . . . Items 17 | . . . . . . . . . . 17 . . . . . . . . Exploration | -11 -10 -10 -9 -9 -6 -6 -6 -6 -5 -5 -5 -5 -5 -5 -4 -4 -4 -4 ------------- Run | Yrd Mat Sub Rec Scr Fac Low Low Zio Pro Fac Ext Cet Arc Hub Fac Upp Upp War Turns Passed 18438 | 231 1415 852 795 3392 1200 373 851 1061 768 1180 1971 323 1036 391 476 631 419 1073 Spaces Moved 10437 | 107 572 442 443 2017 580 297 502 997 496 695 833 145 419 196 256 450 295 695 Core 346 | 3 1 . . 261 4 . . . . 2 . . . . 75 . . . Treads 4983 | 104 571 164 338 1756 413 . . . . 9 778 145 419 196 81 . . 9 Legs 610 | . . . . . 7 . . . . 9 . . . . 12 204 3 375 Wheels 4498 | . . 278 105 . 156 297 502 997 496 675 55 . . . 88 246 292 311 Hover . | . . . . . . . . . . . . . . . . . . . Flight . | . . . . . . . . . . . . . . . . . . . Fastest Speed 50 | 50 160 120 120 50 85 85 100 105 105 86 95 160 160 160 50 105 105 100 Average Speed 136 | 156 161 134 150 165 140 99 111 105 105 109 155 160 160 160 108 114 131 121 Slowest Speed 500 | 160 500 160 160 400 400 100 120 105 105 500 160 160 160 160 160 120 260 180 Overloaded Moves . | . . . . . . . . . . . . . . . . . . . Propulsion Burnouts . | . . . . . . . . . . . . . . . . . . . Robots Hopped . | . . . . . . . . . . . . . . . . . . . Potential Cave-ins . | . . . . . . . . . . . . . . . . . . . Cave-ins Triggered . | . . . . . . . . . . . . . . . . . . . Exploration Rate (%) 55 | 8 82 39 96 88 16 49 59 81 63 21 85 69 90 18 7 59 44 79 Regions Visited 18 Branch Regions 14 Pre-discovered Areas 11 | . . 1 4 3 . . . 2 1 . . . . . . . . . Known Exits Taken 14 | . . . . 1 1 1 1 1 1 1 1 1 1 1 1 1 1 . Unknown Exits Taken 4 | 1 1 1 1 . . . . . . . . . . . . . . . Scrap Searched 18 | . . 4 . 4 . 5 1 1 2 . . . . . . 1 . . Spaces Dug 84 | . . 19 . . 12 9 7 . 2 6 . . . 5 11 1 12 . Terrain Destroyed 343 | . . 97 8 . 68 9 7 . 2 70 19 13 . 5 21 1 23 . Melee 33 | . . . . . 10 2 3 . 2 4 . . . 5 2 1 4 . Projectile 47 | . . 4 8 . 2 7 4 . . 10 12 . . . . . . . AOE 263 | . . 93 . . 56 . . . . 56 7 13 . . 19 . 19 . Terrain Rammed . | . . . . . . . . . . . . . . . . . . . Walls Destroyed . | . . . . . . . . . . . . . . . . . . . Machines Disabled . | . . . . . . . . . . . . . . . . . . . Actions | -11 -10 -10 -9 -9 -6 -6 -6 -6 -5 -5 -5 -5 -5 -5 -4 -4 -4 -4 --------- Run | Yrd Mat Sub Rec Scr Fac Low Low Zio Pro Fac Ext Cet Arc Hub Fac Upp Upp War Total 13549 | 135 929 628 518 2070 801 351 746 1011 719 922 1374 210 746 244 377 547 312 909 Wait 1815 | 2 262 99 39 . 45 31 187 . 209 38 318 21 276 13 45 72 1 157 Move 10419 | 106 571 441 442 2016 579 296 501 996 495 694 832 144 418 195 255 449 294 695 Hop . | . . . . . . . . . . . . . . . . . . . Pick Up 82 | 4 5 6 . 27 8 . 3 3 1 8 8 3 1 . 1 1 . 3 Fast Attach 139 | 7 13 2 1 4 21 1 8 3 . 27 9 4 8 . 15 7 3 6 Attach 47 | . 3 2 . 4 11 . 2 . 1 7 4 3 1 4 3 . . 2 Detach 19 | . . 2 . 3 4 1 1 . . . 2 2 . 2 1 . . 1 Swap 92 | . 8 13 3 4 22 2 5 3 . 13 4 1 3 1 2 1 2 5 Drop 83 | . 2 7 . 12 5 . 7 6 . 12 8 5 4 . 3 3 . 9 Fire 330 | 16 64 45 32 . 26 15 17 . 9 20 35 18 25 . 6 . 2 . Melee 364 | . . . . . 80 5 15 . 4 102 47 1 10 26 46 14 9 5 Ram . | . . . . . . . . . . . . . . . . . . . Kick . | . . . . . . . . . . . . . . . . . . . Crush 3 | . 1 . 1 . . . . . . . 1 . . . . . . . Escape Stasis . | . . . . . . . . . . . . . . . . . . . Rewire 124 | . . . . . . . . . . . 106 . . . . . . 18 Trap 1 | . . . . . . . . . . . . . . . . . 1 . Miscellaneous 31 | . . 11 . . . . . . . 1 . 8 . 3 . . . 8 Route ------- -11/Scrapyard -10/Materials (discovered 5 exits: [*Mat x3] / [*Min] / [*Sub]) -10/Subcaves -9/Recycling (discovered 2 exits: [*Fac] / *Scr) -9/Scraptown (discovered 2 exits: *Fac x2) -6/Factory (discovered 4 exits: *Fac x2 / *Low x2) -6/Lower Caves -6/Lower Caves -6/Zion -5/Proximity Caves -5/Factory (discovered 4 exits: Fac / Upp x2 / *Ext) -5/Extension (discovered 2 exits: *Fac / *Cet) -5/Cetus (discovered 2 exits: *Fac / *Arc) -5/Archives (discovered 3 exits: *Fac / *Hub x2) -5/Hub_04(d) (discovered 4 exits: *Fac x4) -4/Factory (discovered 3 exits: Res x2 / *Upp) -4/Upper Caves -4/Upper Caves (discovered 2 exits: Res / *War) -4/Warlord History --------- Turn | Location | Event 46 | -11/Scrapyard | Discovered new exit (range 15) 232 | -11/Scrapyard | Entered Materials 322 | -10/Materials | Build established: Mutant 483 | -10/Materials | Discovered new exit (range 16) 605 | -10/Materials | Discovered new exit (range 15) 720 | -10/Materials | Discovered new exit (range 15) 1132 | -10/Materials | Derelicts attacked the area 1192 | -10/Materials | Build established: Scavenger-Mutant 1357 | -10/Materials | Discovered new exit (range 13) 1634 | -10/Materials | Discovered new exit (range 9) 1639 | -10/Materials | Build established: Mutant 1647 | -10/Materials | Entered Subcaves 1648 | -10/Subcaves | Approached by a straggling Scientist 1772 | -10/Subcaves | Core integrity fell below 50% 1851 | -10/Subcaves | A Subdweller sparked back to life 1885 | -10/Subcaves | Found Prototype Power Core 1893 | -10/Subcaves | Ambushed by research squad 2049 | -10/Subcaves | Core integrity fell below 20% 2149 | -10/Subcaves | Build established: Subdweller-Mutant 2334 | -10/Subcaves | Shifting Twisted Machinery released Sub. Laser 2341 | -10/Subcaves | A swath of the cavern ceiling suddenly collapsed 2457 | -10/Subcaves | Learned location of Zion (-6) 2457 | -10/Subcaves | Met a Zionite searching for "candidates" 2474 | -10/Subcaves | Discovered new exit (range 13) 2499 | -10/Subcaves | Entered Recycling 2962 | -9/Recycling | Discovered new exit (range 12) 3004 | -9/Recycling | Build established: Mutant 3256 | -9/Recycling | Scanned before Scraplab entrance 3278 | -9/Recycling | Entered Scraplab 3291 | -9/Recycling | Discovered new exit (range 2) 3294 | -9/Recycling | Entered Scraptown 3504 | -9/Scraptown | Visited Red Mages 3526 | -9/Scraptown | Visited Symbiants 3536 | -9/Scraptown | Visited Spacefarers 3643 | -9/Scraptown | Scanned Subdweller tech in exchange for log data 3648 | -9/Scraptown | Learned location of 1 exit from Proximity Caves 3650 | -9/Scraptown | Learned Research interactive machine intel 3651 | -9/Scraptown | Learned Factory terminal intel 4017 | -9/Scraptown | Heard Great Nut preacher, LISTEN AND RECITE! 4153 | -9/Scraptown | Visited Assassins FH 4186 | -9/Scraptown | Visited Cyclists 4246 | -9/Scraptown | Visited UFD Registry 4246 | -9/Scraptown | Registered with UFD as "Fissionchassis" 4277 | -9/Scraptown | Visited Observation Area 4385 | -9/Scraptown | Visited Fellowship of the Rings 4450 | -9/Scraptown | Discovered new exit (range 13) 4501 | -9/Scraptown | Guru changed UFD alias to "Megadome" 4896 | -9/Scraptown | Visited LU-1G1's Boring Crew 5004 | -9/Scraptown | Visited Sword Containment 5080 | -9/Scraptown | Visited Research Penetration Think Tank 5121 | -9/Scraptown | Visited Supply Room 5253 | -9/Scraptown | Visited Scrap Suit Storage 5289 | -9/Scraptown | Visited A0-MCA Data Center 5314 | -9/Scraptown | Given a B+ rating by A0-MCA 5319 | -9/Scraptown | Found A0-MCA's Component Scanner 5320 | -9/Scraptown | Identified Meta Core 5372 | -9/Scraptown | Delivered Scrap Shield to a Scientist 5439 | -9/Scraptown | Visited Science Guys 5461 | -9/Scraptown | Visited Curators Association 5813 | -9/Scraptown | Visited Cartography Club 5962 | -9/Scraptown | Learned location of Upper Caves (-5) 5962 | -9/Scraptown | Learned location of Extension (-5) 5962 | -9/Scraptown | Learned location of Cetus (-5) 5962 | -9/Scraptown | Learned 12 Materials zone layouts 5962 | -9/Scraptown | Learned 8 Access zone layouts 5962 | -9/Scraptown | Learned 20 Lower Caves zone layouts 5962 | -9/Scraptown | Learned 8 Proximity Caves zone layouts 5962 | -9/Scraptown | Learned 4 Armory zone layouts 5962 | -9/Scraptown | Learned Research emergency access door positions 5962 | -9/Scraptown | Learned location of 1 exit from Factory 5962 | -9/Scraptown | Learned location of 1 exit from Lower Caves 5962 | -9/Scraptown | Learned location of 2 exits from Upper Caves 5962 | -9/Scraptown | Identified exit to Factory 6575 | -9/Scraptown | Met Optimus 6575 | -9/Scraptown | Accepted into 0bPrime 6686 | -9/Scraptown | Entered Factory 6686 | -6/Factory | Evolved 8 slots: Power x1, Propulsion x2, Utility x4, Weapon x1 6687 | -6/Factory | Identified exit to Factory 6689 | -6/Factory | Loaded intel: 26 terminal locations 7144 | -6/Factory | Identified exit to Lower Caves 7587 | -6/Factory | Cargo convoy interrupted 7625 | -6/Factory | System corruption reached 10% 7649 | -6/Factory | Core integrity fell below 50% 7670 | -6/Factory | Destroyed 9 combat bots 7679 | -6/Factory | Lost 18 parts (2p9n4u3w) 7886 | -6/Factory | Entered Lower Caves 7887 | -6/Lower Caves | Identified exit to Lower Caves 7888 | -6/Lower Caves | UFD Scientist delivered a prototype 7918 | -6/Lower Caves | Found Prototype Protection 7918 | -6/Lower Caves | Identified Enh. Scrap Shield 8004 | -6/Lower Caves | Learned 8 Factory zone layouts 8053 | -6/Lower Caves | Build established: Scavenger-Assassin 8186 | -6/Lower Caves | Encountered a Warlord checkpoint 8259 | -6/Lower Caves | Entered another Lower Caves area 8261 | -6/Lower Caves | Attracted the attention of an 0b10 checkpoint 8554 | -6/Lower Caves | Found Prototype Device 8554 | -6/Lower Caves | Identified Heart of Steel 8656 | -6/Lower Caves | Entered a destroyed Warlord outpost 9016 | -6/Lower Caves | Learned Factory terminal intel 9085 | -6/Lower Caves | Discovered new exit (range 5) 9088 | -6/Lower Caves | Identified exit to Zion 9110 | -6/Lower Caves | Entered Zion 9142 | -6/Zion | Acquired unknown access codes intercepted by a Zionite 9156 | -6/Zion | System corruption cleaned by Quarantine Array 9280 | -6/Zion | Received a hallucinogenic algorithm 9306 | -6/Zion | Learned location of 1 exit from Factory 9353 | -6/Zion | Given the Hacking Drone Bay 9353 | -6/Zion | Found Prototype Device 9737 | -6/Zion | Found Prototype Device 9737 | -6/Zion | Identified Phasing AFG 9777 | -6/Zion | Visited the Megawrench Repair Shop 9777 | -6/Zion | Megawrench repaired 14 parts 10017 | -6/Zion | Turned away by Imprinter 10156 | -6/Zion | Discovered new exit (range 15) 10170 | -6/Zion | Identified exit to Proximity Caves 10171 | -6/Zion | Entered Proximity Caves 10814 | -5/Proximity Caves | Learned location of Warlord (-4) 10939 | -5/Proximity Caves | Entered Factory 10939 | -5/Factory | Evolved 2 slots: Propulsion x1, Utility x1 10940 | -5/Factory | Identified exit to Upper Caves 10940 | -5/Factory | Identified exit to Extension 10941 | -5/Factory | Identified exit to Factory 10943 | -5/Factory | Loaded intel: 27 terminal locations 11265 | -5/Factory | Attached Meta Core, gained temporary slots: Propulsion, Utility, Weapon 11292 | -5/Factory | Lost 5 parts (2p2n1u) 11356 | -5/Factory | Lost 7 parts (3n2u2w) 11399 | -5/Factory | Identified Hacking Drone Bay 11429 | -5/Factory | Lost 5 parts (1p2n1u1w) 11702 | -5/Factory | Core integrity fell below 50% 11751 | -5/Factory | Lost 3 parts (1p1n1u) 12119 | -5/Factory | Entered Extension 12236 | -5/Extension | System corruption reached 10% 12276 | -5/Extension | Lost 5 parts (1p3n1u) 12499 | -5/Extension | Rescued a captive Derelict 12727 | -5/Extension | Lost 3 allies 12934 | -5/Extension | Lost 4 allies 13522 | -5/Extension | Spotted B-75 Beast 13539 | -5/Extension | Destroyed B-75 Beast 13544 | -5/Extension | Disrupted transfer network 13602 | -5/Extension | Rescued a captive Derelict 13603 | -5/Extension | Rescued a captive Derelict 13685 | -5/Extension | Rescued A7 13859 | -5/Extension | Rescued a captive Derelict 13859 | -5/Extension | Rescued a captive Derelict 13883 | -5/Extension | Rescued a captive Derelict 14023 | -5/Extension | Forged Quantum Companion 14048 | -5/Extension | Discovered exit to Factory (range 10) 14050 | -5/Extension | Discovered new exit (range 6) 14087 | -5/Extension | Identified exit to Cetus 14090 | -5/Extension | Entered Cetus 14090 | -5/Cetus | Accompanied by 3 allies (A7) 14095 | -5/Cetus | Acquired a Cetus Manufacturing Module code from A7 14111 | -5/Cetus | Spotted Cetus Guard 14111 | -5/Cetus | Spotted Cetus Guard 14117 | -5/Cetus | Allies destroyed Cetus Guard 14117 | -5/Cetus | Spotted Cetus Guard 14117 | -5/Cetus | Spotted Cetus Guard 14125 | -5/Cetus | Destroyed Cetus Guard 14125 | -5/Cetus | Core integrity fell below 20% 14127 | -5/Cetus | Allies destroyed Cetus Guard 14140 | -5/Cetus | Destroyed Cetus Guard 14169 | -5/Cetus | Lost 4 parts (2p1n1u) 14214 | -5/Cetus | Started Cetus Manufacturing Module 14239 | -5/Cetus | Manufactured an Enhanced Grunt 14243 | -5/Cetus | Escorted A7 to Cetus Mainframe 14264 | -5/Cetus | Manufactured an Enhanced Grunt 14275 | -5/Cetus | Build established: Scavenger-Mutant 14281 | -5/Cetus | Discovered new exit (range 15) 14289 | -5/Cetus | Manufactured an Enhanced Grunt 14314 | -5/Cetus | Manufactured an Enhanced Grunt 14319 | -5/Cetus | Spotted Cetus Guard 14319 | -5/Cetus | Spotted Cetus Guard 14321 | -5/Cetus | Spotted Cetus Guard 14321 | -5/Cetus | Spotted Cetus Guard 14329 | -5/Cetus | Destroyed Cetus Guard 14330 | -5/Cetus | Allies destroyed Cetus Guard 14337 | -5/Cetus | Allies destroyed Cetus Guard 14338 | -5/Cetus | Discovered exit to Factory (range 10) 14339 | -5/Cetus | Manufactured an Enhanced Grunt 14340 | -5/Cetus | Allies destroyed Cetus Guard 14342 | -5/Cetus | Met Revision 17 14405 | -5/Cetus | Identified exit to Archives 14413 | -5/Cetus | Entered Archives 14413 | -5/Archives | Accompanied by 6 allies (A7) 14418 | -5/Archives | Received a hacking code to weaken MAIN.C 14519 | -5/Archives | Discovered new exit (range 15) 14620 | -5/Archives | Discovered new exit (range 15) 15007 | -5/Archives | Discovered exit to Factory (range 15) 15430 | -5/Archives | Identified exit to Hub_04(d) 15449 | -5/Archives | Entered Hub_04(d) 15449 | -5/Hub_04(d) | Accompanied by 5 allies 15666 | -5/Hub_04(d) | Garrison activated, responded to threat 15716 | -5/Hub_04(d) | Network Hub disabled 15749 | -5/Hub_04(d) | First assault squad dispatched 15800 | -5/Hub_04(d) | Garrison activated, responded to threat 15820 | -5/Hub_04(d) | Lost 3 allies 15840 | -5/Hub_04(d) | Entered Factory 15840 | -4/Factory | Evolved 2 slots: Propulsion x1, Utility x1 15841 | -4/Factory | Identified exit to Research 15958 | -4/Factory | Spotted B-86 Titan 16025 | -4/Factory | Lost 5 parts (2p1n1u1w) 16108 | -4/Factory | Lost 7 parts (3n3u1w) 16250 | -4/Factory | Discovered new exit (range 2) 16251 | -4/Factory | Identified exit to Upper Caves 16316 | -4/Factory | Entered Upper Caves 16317 | -4/Upper Caves | Identified exit to Upper Caves 16758 | -4/Upper Caves | Attracted the attention of an 0b10 checkpoint 16820 | -4/Upper Caves | Lost 3 parts (1p1n1u) 16947 | -4/Upper Caves | Entered another Upper Caves area 17278 | -4/Upper Caves | Learned Research emergency access door positions 17338 | -4/Upper Caves | Discovered new exit (range 16) 17365 | -4/Upper Caves | Identified exit to Warlord 17366 | -4/Upper Caves | Entered Warlord 17622 | -4/Warlord | Visited the Vortex Lab 17632 | -4/Warlord | Found Prototype Energy Cannon 17632 | -4/Warlord | Identified Vortex Cannon 17636 | -4/Warlord | Found Prototype Energy Gun 17636 | -4/Warlord | Identified Vortex Shotgun 17637 | -4/Warlord | Warlord's base attacked by MAIN.C 17642 | -4/Warlord | Found Prototype Energy Gun 17642 | -4/Warlord | Identified Vortex Rifle 17647 | -4/Warlord | Found Vortex Cannon 17798 | -4/Warlord | Found Prototype Processor 17798 | -4/Warlord | Identified Exp. Targeting Computer 17809 | -4/Warlord | Found Prototype Device 17809 | -4/Warlord | Identified System Purifier 17825 | -4/Warlord | Found Prototype Reactor 17987 | -4/Warlord | Warlord forces counterattacked 17991 | -4/Warlord | Rebuked by Warlord 18025 | -4/Warlord | Learned Armory scanalyzer intel 18025 | -4/Warlord | Learned Research garrison access intel 18025 | -4/Warlord | Learned 4 Armory zone layouts 18025 | -4/Warlord | Learned 4 Access zone layouts 18025 | -4/Warlord | Learned 4 Testing zone layouts 18027 | -4/Warlord | Learned Testing trap positions 18027 | -4/Warlord | Learned Testing stockpile data 18312 | -4/Warlord | Warlord base infiltrated, sounded retreat 18351 | -4/Warlord | Spotted Executioner 18352 | -4/Warlord | Spotted Executioner 18372 | -4/Warlord | Met EX-DEC 18397 | -4/Warlord | Spotted Striker 18399 | -4/Warlord | Spotted Executioner 18401 | -4/Warlord | Core integrity fell below 50% 18420 | -4/Warlord | Spotted Executioner 18437 | -4/Warlord | Core integrity fell below 20% 18439 | -4/Warlord | Destroyed by Executioner with Helical Railgun Last Messages --------------- 18433_ Flexi-carbon Leg destroyed. 18433_ Deflected attack with Quantum Companion. 18434_ Imp. Targeting Computer destroyed. 18435_ Critical hit (Burn: +50). Quantum Companion releases a shadow of itself that zips off towards Executioner. 18435_ Penetrated by Slug. 18435_ Exp. Targeting Computer destroyed. 18435_ Slug penetrates Wall. 18436_ Penetrated by Slug. 18436_ Slug penetrates Earth. 18436_ Quantum Companion surprise attacks G-67 Veteran. 18436_ Penetrated by Slug. 18437_ ANNOUNCEMENT: Detected 1 Melee squad, 2 Grunt squads, 1 Programmer squad, with prototype support. 18437_ Enh. Biometal Leg destroyed. 18438_ Penetrated by Slug. 18439_ System corrupted: Heat flow error (+279). Map ----- +----------------------------------------------------+ | ????????????????????????????????????????????? | | ????????????????????????????????????????????? | | ????????????????????????????????????????????? | | ????????????????????????????????????????????? | | ????????????????????????????????????????????? | | ????????????????????????????????????????????? | | ????????????????????????????????????????????? | | ###?????????????????????????????????????????? | | #?????????????????????????????##??????????? | | #????????????????????????????## ??????????? | | #???????????????????????? ?? ???????#??? | | ####?????????????????????? ### ?????? ##? | | # ##????????????????????? ?????? ?? | | # #?????????????????????# #????? ?? | | ## #?""??????????????????# ????? #?? | | ##""#????###???????????# ##??? #?? | | # ##""###### ##???????????# #??? ##? | | # # ##"" # ##???????????# ##?? #? | | "" [ ## ########?#????# ### #?? | | [ [=[=""[ """"## ?????# #??? | | =*[![["" """" # ######"% #???? | | =!![! * %! ;;# """ g ##??? | | [!%!! *m%% [[ =g !![%* g "" "??? | | =!!%=== %c%%== %= m%%h%= % #### #??? | | !*]=%= % *!dWm!]K [E= Eglb### ##??# #??? | | !*%=%]= !=%c*m% !%! g @; ### #???# ##?? | | ===|[!=! ""!=*!*%!= """ ; #igK#?### #?? | | =%!!!*= ""*! =###;######### ; ;### # ^ #?? | | =*%=####!""### "#?#?#?????????# g;g #?? | | !!# #??##""#?## #???????????? ; #?? | | # #???#""#??####??????????? ### ##?? | | #???#""#????????????????? ##?#^ #??? | | # ????""#???????????????? ???## ##??? | | ##????""#???????????????# ????## #???? | | # #??????????????????????? #?????# #???? | | #??????????????????????? ??????## ##??? | | #???????????????????????? ??????## #??? | | # #??????????????????????????????## #??? | | #?#??????????????????????????????# #??? | | #????????????????????????????????# #??? | | #???????????????????????????????# #??? | | # ??????????????????????????????# #??? | | ##??????????????????????????????## ##??? | | ???????????????????????????????? #???? | | #???????????????????????????????? ##???? | | #????????????????????????????????####????? | | #????????????????????????????????????????? | | #????????????????????????????????????????? | | +#######????????????????????????????????????? | | #????????????????????????????????????? | +----------------------------------------------------+ Best States ------------- Heat Dissipation 93 Coolant Potential 120 Energy Generation 43 Energy Capacity 590 Matter Stores 300 Matter Capacity 300 Sight Range 18 Robot Scan Range 15 Terrain Scan Density 10 Jamming Range 12 Armor Coverage 800 Weapon Cycling 15 Evasion (%) 67 Targeting Accuracy 18 Melee Accuracy 13 Recoil Reduction 5 Offensive Hacking 14 Item Schematics ----------------- None Robot Schematics ------------------ None Fabricated ------------ Nothing Repaired ---------- Nothing Alien Tech Used ----------------- None Achievements -------------- None Challenges ------------ None Game ------ Seed CryofiberAblativeMinigun Manual? 0 Play Time 02:22:10 Cumulative 327.8 hours Start 2025.05.28 @ 02:00:28 End 2025.05.28 @ 09:32:33 Sessions 5 Manual Loads 0 Difficulty Rogue Special Mode None Game No. 157 Rogue 94 Adventurer 16 Explorer 47 Win Type - Total 42 Types 24/5/6/1/0/1/2/1/1/1 Lore% 92 Gallery% 88 Achievement% 83 Wizard Run 0 Options --------- Layout 2 ASCII 0 Keyboard 0 Movement Mouse Keybinds 0 Fullscreen 1 Font 32/Tamsyn Map View 50x44 Zoom Use 0% Tactical HUD 1 Map Filters NONE Filters NONE Steam 1 RUN: 254cff95-33af-4873-a5d3-1efd9ba9c921